[Event "Late-Titled-Tuesday-Blitz-June-25-2024"]
[Site "Chess.com"]
[Date "2024.06.25"]
[Round "10"]
[White "mishanick"]
[Black "ChristopherYoo"]
[Result "0-1"]
[WhiteElo "3138"]
[BlackElo "3049"]
[TimeControl "180+1"]
[EndTime "15:53:59 PDT"]
[Termination "ChristopherYoo won by checkmate"]

1. d4 {[%clk 0:02:57.6]} 1... Nf6 {[%clk 0:02:59.2]} 2. c4 {[%clk 0:02:58.1]}
2... e6 {[%clk 0:02:59.3]} 3. Nc3 {[%clk 0:02:58.8]} 3... Bb4 {[%clk 0:02:53.6]}
4. Qc2 {[%clk 0:02:58.9]} 4... d5 {[%clk 0:02:42.1]} 5. cxd5 {[%clk 0:02:56.3]}
5... exd5 {[%clk 0:02:38.8]} 6. Bg5 {[%clk 0:02:56.6]} 6... h6 {[%clk
0:02:29.2]} 7. Bh4 {[%clk 0:02:55.6]} 7... c5 {[%clk 0:02:19.3]} 8. dxc5 {[%clk
0:02:49.6]} 8... Nbd7 {[%clk 0:02:06.7]} 9. Nf3 {[%clk 0:02:47.7]} 9... Qa5
{[%clk 0:02:05.7]} 10. e3 {[%clk 0:02:43.8]} 10... Ne4 {[%clk 0:02:03.4]} 11.
Rc1 {[%clk 0:02:41.5]} 11... Ndxc5 {[%clk 0:02:02.8]} 12. Nd4 {[%clk 0:02:33.7]}
12... Bd7 {[%clk 0:02:02.3]} 13. a3 {[%clk 0:01:57]} 13... Bxc3+ {[%clk
0:01:55.9]} 14. bxc3 {[%clk 0:01:57.9]} 14... Qxa3 {[%clk 0:01:55.7]} 15. Be2
{[%clk 0:01:51]} 15... Ba4 {[%clk 0:01:48.9]} 16. Bb5+ {[%clk 0:01:51.3]} 16...
Bxb5 {[%clk 0:01:46.8]} 17. Nxb5 {[%clk 0:01:51.2]} 17... Qa5 {[%clk 0:01:46.9]}
18. Nd4 {[%clk 0:01:45.2]} 18... Qa6 {[%clk 0:01:42.7]} 19. Rd1 {[%clk
0:01:41.8]} 19... Qc4 {[%clk 0:01:17.1]} 20. f3 {[%clk 0:01:34.7]} 20... Nxc3
{[%clk 0:01:15.4]} 21. Rd2 {[%clk 0:01:31.6]} 21... N3a4 {[%clk 0:01:11.2]} 22.
Qf5 {[%clk 0:01:25.2]} 22... Qc1+ {[%clk 0:00:51.7]} 23. Rd1 {[%clk 0:01:04.7]}
23... Qxe3+ {[%clk 0:00:51.5]} 24. Kf1 {[%clk 0:01:05.2]} 24... O-O {[%clk
0:00:52]} 25. Bf2 {[%clk 0:01:02.6]} 25... Qa3 {[%clk 0:00:48.5]} 26. Qg4 {[%clk
0:01:00.4]} 26... Nc3 {[%clk 0:00:45.7]} 27. Re1 {[%clk 0:00:54.1]} 27... Qa6+
{[%clk 0:00:45.1]} 28. Kg1 {[%clk 0:00:54.1]} 28... Rae8 {[%clk 0:00:43]} 29.
Nf5 {[%clk 0:00:48.7]} 29... Ne2+ {[%clk 0:00:42.4]} 30. Rxe2 {[%clk 0:00:49]}
30... Qa1+ {[%clk 0:00:42.3]} 31. Re1 {[%clk 0:00:46.7]} 31... Rxe1+ {[%clk
0:00:41.4]} 32. Bxe1 {[%clk 0:00:47.6]} 32... Qxe1# {[%clk 0:00:41.8]} 0-1

[Event "Late-Titled-Tuesday-Blitz-June-25-2024"]
[Site "Chess.com"]
[Date "2024.06.25"]
[Round "10"]
[White "AlejandroArias"]
[Black "Juliana_Figueira"]
[Result "1-0"]
[WhiteElo "2349"]
[BlackElo "2015"]
[TimeControl "180+1"]
[EndTime "15:54:08 PDT"]
[Termination "AlejandroArias won by resignation"]

1. e4 {[%clk 0:03:00.9]} 1... c5 {[%clk 0:03:00.3]} 2. Nf3 {[%clk 0:03:00.2]}
2... d6 {[%clk 0:03:00.6]} 3. Bb5+ {[%clk 0:02:59.8]} 3... Bd7 {[%clk
0:03:00.7]} 4. Bxd7+ {[%clk 0:02:59.8]} 4... Qxd7 {[%clk 0:03:00.9]} 5. c4
{[%clk 0:02:59.9]} 5... Nf6 {[%clk 0:03:01.2]} 6. Nc3 {[%clk 0:03:00.4]} 6...
Nc6 {[%clk 0:03:00.6]} 7. d4 {[%clk 0:03:00.7]} 7... cxd4 {[%clk 0:03:01]} 8.
Nxd4 {[%clk 0:03:01.4]} 8... e6 {[%clk 0:03:01.3]} 9. Be3 {[%clk 0:02:57.3]}
9... Be7 {[%clk 0:03:01.6]} 10. O-O {[%clk 0:02:54.3]} 10... O-O {[%clk
0:03:01.8]} 11. Rc1 {[%clk 0:02:54.2]} 11... Rac8 {[%clk 0:03:01.1]} 12. b3
{[%clk 0:02:53.8]} 12... a6 {[%clk 0:03:01.2]} 13. Qe2 {[%clk 0:02:47.5]} 13...
d5 {[%clk 0:02:53.6]} 14. Nxc6 {[%clk 0:02:42.5]} 14... bxc6 {[%clk 0:02:50.2]}
15. e5 {[%clk 0:02:39.8]} 15... Ne8 {[%clk 0:02:42.9]} 16. cxd5 {[%clk
0:02:20.3]} 16... cxd5 {[%clk 0:02:39.7]} 17. Qxa6 {[%clk 0:02:13.8]} 17... d4
{[%clk 0:02:38.7]} 18. Rfd1 {[%clk 0:02:13.5]} 18... Rd8 {[%clk 0:02:30.6]} 19.
Rxd4 {[%clk 0:02:08.7]} 19... Qc8 {[%clk 0:02:27.9]} 20. Qxc8 {[%clk 0:01:57.5]}
20... Rxc8 {[%clk 0:02:27.1]} 21. Ne4 {[%clk 0:01:58.1]} 21... Rxc1+ {[%clk
0:02:25.8]} 22. Bxc1 {[%clk 0:01:59]} 22... f6 {[%clk 0:02:24]} 23. Rd7 {[%clk
0:01:52.4]} 23... Bb4 {[%clk 0:02:19.2]} 24. Bb2 {[%clk 0:01:44.7]} 24... fxe5
{[%clk 0:02:16.4]} 25. Bxe5 {[%clk 0:01:41.2]} 25... Nf6 {[%clk 0:02:13.8]} 26.
Nxf6+ {[%clk 0:01:36.7]} 26... gxf6 {[%clk 0:02:08.4]} 27. Bc7 {[%clk
0:01:26.9]} 27... Ra8 {[%clk 0:02:06.7]} 28. Rd8+ {[%clk 0:01:26.6]} 28... Rxd8
{[%clk 0:02:00.9]} 29. Bxd8 {[%clk 0:01:27.5]} 29... Kf7 {[%clk 0:02:01.2]} 30.
Kf1 {[%clk 0:01:25.4]} 30... f5 {[%clk 0:01:59.1]} 31. Ke2 {[%clk 0:01:24.5]}
31... Ke8 {[%clk 0:01:58.8]} 32. Bb6 {[%clk 0:01:24]} 32... Kd7 {[%clk
0:01:52.4]} 33. Kd3 {[%clk 0:01:23.5]} 33... Kc6 {[%clk 0:01:52.3]} 34. Kc4
{[%clk 0:01:18.8]} 34... Bd6 {[%clk 0:01:34]} 35. Bd4 {[%clk 0:01:13.4]} 35...
Bxh2 {[%clk 0:01:33.5]} 36. b4 {[%clk 0:01:11.1]} 36... Bc7 {[%clk 0:01:31.5]}
37. b5+ {[%clk 0:01:08.7]} 37... Kb7 {[%clk 0:01:31.9]} 38. a4 {[%clk
0:01:07.3]} 38... h5 {[%clk 0:01:31.3]} 39. Bc3 {[%clk 0:01:03.3]} 39... h4
{[%clk 0:01:19.2]} 40. a5 {[%clk 0:01:01.1]} 40... f4 {[%clk 0:01:19.2]} 41. a6+
{[%clk 0:00:58.5]} 41... Ka7 {[%clk 0:01:16.4]} 42. Bd4+ {[%clk 0:00:57.6]}
42... Bb6 {[%clk 0:01:15.3]} 43. Bxb6+ {[%clk 0:00:53.3]} 43... Kxb6 {[%clk
0:01:15.5]} 44. f3 {[%clk 0:00:53.6]} 44... e5 {[%clk 0:01:14.1]} 45. Kd5 {[%clk
0:00:53.4]} 45... e4 {[%clk 0:01:08.8]} 46. Kxe4 {[%clk 0:00:53]} 46... Kxb5
{[%clk 0:01:07]} 47. a7 {[%clk 0:00:52.4]} 1-0

[Event "Late-Titled-Tuesday-Blitz-June-25-2024"]
[Site "Chess.com"]
[Date "2024.06.25"]
[Round "10"]
[White "EternalNight8"]
[Black "prxcess_brownie"]
[Result "0-1"]
[WhiteElo "2371"]
[BlackElo "2241"]
[TimeControl "180+1"]
[EndTime "15:54:26 PDT"]
[Termination "prxcess_brownie won by resignation"]

1. e4 {[%clk 0:03:00.9]} 1... c5 {[%clk 0:02:58.2]} 2. Nf3 {[%clk 0:03:00.4]}
2... Nc6 {[%clk 0:02:58]} 3. Bb5 {[%clk 0:02:59.8]} 3... g6 {[%clk 0:02:57.2]}
4. Bxc6 {[%clk 0:02:59.7]} 4... bxc6 {[%clk 0:02:56.7]} 5. O-O {[%clk
0:02:59.8]} 5... Bg7 {[%clk 0:02:56.8]} 6. Re1 {[%clk 0:02:59.6]} 6... e5 {[%clk
0:02:55.5]} 7. c3 {[%clk 0:02:54.8]} 7... Ne7 {[%clk 0:02:47.6]} 8. d4 {[%clk
0:02:48]} 8... cxd4 {[%clk 0:02:47.2]} 9. cxd4 {[%clk 0:02:48.9]} 9... exd4
{[%clk 0:02:45]} 10. Nxd4 {[%clk 0:02:44.5]} 10... O-O {[%clk 0:02:44.3]} 11.
Bf4 {[%clk 0:02:39.1]} 11... d5 {[%clk 0:02:40.9]} 12. exd5 {[%clk 0:02:34.8]}
12... Qxd5 {[%clk 0:02:30.5]} 13. Rxe7 {[%clk 0:01:52.6]} 13... Bxd4 {[%clk
0:02:23.7]} 14. Nc3 {[%clk 0:01:45.1]} 14... Bxf2+ {[%clk 0:02:19.7]} 15. Kxf2
{[%clk 0:01:42.6]} 15... Qc5+ {[%clk 0:02:18.3]} 16. Re3 {[%clk 0:01:42.2]}
16... Ba6 {[%clk 0:02:15.8]} 17. Bd6 {[%clk 0:01:36.2]} 17... Qb6 {[%clk
0:02:10.2]} 18. Bxf8 {[%clk 0:01:35.8]} 18... Rxf8 {[%clk 0:02:08.8]} 19. Qf3
{[%clk 0:01:26.3]} 19... Qxb2+ {[%clk 0:02:05.4]} 20. Ne2 {[%clk 0:01:23.7]}
20... Qxa1 {[%clk 0:02:04.2]} 21. Qxc6 {[%clk 0:01:24]} 21... Qxa2 {[%clk
0:02:01.6]} 22. Qc7 {[%clk 0:01:23.7]} 22... Bxe2 {[%clk 0:01:49.4]} 23. Rxe2
{[%clk 0:01:23.9]} 23... Qa4 {[%clk 0:01:43.8]} 24. Re7 {[%clk 0:01:18.9]} 24...
a5 {[%clk 0:01:40.1]} 25. Qa7 {[%clk 0:01:11.4]} 25... Qa2+ {[%clk 0:01:38.1]}
26. Re2 {[%clk 0:01:10.1]} 26... Qd5 {[%clk 0:01:35.5]} 27. Qc7 {[%clk
0:00:55.6]} 27... a4 {[%clk 0:01:33]} 28. Qa7 {[%clk 0:00:52]} 28... Ra8 {[%clk
0:01:31.2]} 29. Qe3 {[%clk 0:00:31.3]} 29... a3 {[%clk 0:01:29.7]} 30. Re1
{[%clk 0:00:29.8]} 30... a2 {[%clk 0:01:25.5]} 31. Ra1 {[%clk 0:00:29.9]} 31...
Rb8 {[%clk 0:01:24.2]} 32. Qa7 {[%clk 0:00:21.8]} 32... Rb2+ {[%clk 0:01:22.3]}
33. Ke3 {[%clk 0:00:18.9]} 33... Qxg2 {[%clk 0:01:19.2]} 34. Kd3 {[%clk
0:00:04.8]} 34... Qe2+ {[%clk 0:01:17.2]} 35. Kc3 {[%clk 0:00:04.4]} 35... Qd2+
{[%clk 0:01:15.9]} 36. Kc4 {[%clk 0:00:04.3]} 36... Rb4+ {[%clk 0:01:15.8]} 37.
Kc5 {[%clk 0:00:02.2]} 37... Qd4+ {[%clk 0:01:15.9]} 38. Kc6 {[%clk 0:00:03.1]}
38... Qxa7 {[%clk 0:01:15.4]} 39. Rxa2 {[%clk 0:00:04]} 39... Qxa2 {[%clk
0:01:13.7]} 0-1

[Event "Late-Titled-Tuesday-Blitz-June-25-2024"]
[Site "Chess.com"]
[Date "2024.06.25"]
[Round "10"]
[White "SebbyMeister"]
[Black "toninhojit"]
[Result "0-1"]
[WhiteElo "2263"]
[BlackElo "2510"]
[TimeControl "180+1"]
[EndTime "15:54:32 PDT"]
[Termination "toninhojit won by checkmate"]

1. e4 {[%clk 0:03:00.9]} 1... c5 {[%clk 0:02:59.3]} 2. Nf3 {[%clk 0:02:58.8]}
2... d6 {[%clk 0:02:59.9]} 3. d4 {[%clk 0:02:58.3]} 3... cxd4 {[%clk 0:03:00.8]}
4. Nxd4 {[%clk 0:02:57.9]} 4... Nf6 {[%clk 0:03:01.4]} 5. Nc3 {[%clk 0:02:57.8]}
5... g6 {[%clk 0:02:58.2]} 6. f3 {[%clk 0:02:57.6]} 6... Bg7 {[%clk 0:02:54.9]}
7. Be3 {[%clk 0:02:58]} 7... O-O {[%clk 0:02:55.4]} 8. Qd2 {[%clk 0:02:57.7]}
8... Nc6 {[%clk 0:02:56.1]} 9. Bc4 {[%clk 0:02:57.8]} 9... Bd7 {[%clk
0:02:55.9]} 10. O-O-O {[%clk 0:02:58.3]} 10... Rc8 {[%clk 0:02:55.9]} 11. Bb3
{[%clk 0:02:58.5]} 11... Ne5 {[%clk 0:02:56.6]} 12. Kb1 {[%clk 0:02:57.3]} 12...
Nc4 {[%clk 0:02:56.8]} 13. Bxc4 {[%clk 0:02:57.9]} 13... Rxc4 {[%clk 0:02:57.4]}
14. b3 {[%clk 0:02:58.7]} 14... Rc8 {[%clk 0:02:56.4]} 15. h4 {[%clk 0:02:54.7]}
15... h5 {[%clk 0:02:56.6]} 16. g4 {[%clk 0:02:54.1]} 16... Re8 {[%clk
0:02:55.2]} 17. Nd5 {[%clk 0:02:39.3]} 17... Nxd5 {[%clk 0:02:46.3]} 18. exd5
{[%clk 0:02:38.1]} 18... Qc7 {[%clk 0:02:43.6]} 19. gxh5 {[%clk 0:02:36.4]}
19... Qc3 {[%clk 0:02:39.2]} 20. Qf2 {[%clk 0:02:29]} 20... Bf5 {[%clk
0:02:35.5]} 21. Rc1 {[%clk 0:02:17.5]} 21... gxh5 {[%clk 0:02:26.5]} 22. Rhg1
{[%clk 0:02:14.2]} 22... Bg6 {[%clk 0:02:26.6]} 23. f4 {[%clk 0:02:08.5]} 23...
a5 {[%clk 0:02:20.2]} 24. f5 {[%clk 0:02:02.2]} 24... a4 {[%clk 0:02:17.4]} 25.
fxg6 {[%clk 0:01:58.3]} 25... a3 {[%clk 0:02:13.1]} 26. Qxf7+ {[%clk 0:01:19.8]}
26... Kh8 {[%clk 0:02:12.7]} 27. Qxg7+ {[%clk 0:01:17.6]} 27... Kxg7 {[%clk
0:02:13.6]} 28. Nf5+ {[%clk 0:01:13.1]} 28... Kg8 {[%clk 0:02:01.1]} 29. Bd4
{[%clk 0:01:07.6]} 29... Qd2 {[%clk 0:02:00.9]} 30. Be3 {[%clk 0:00:55.3]} 30...
Qxd5 {[%clk 0:01:53.4]} 31. Rcf1 {[%clk 0:00:42.5]} 31... Qe4 {[%clk 0:01:20.9]}
32. Bd4 {[%clk 0:00:22]} 32... e5 {[%clk 0:01:10.5]} 33. Nh6+ {[%clk 0:00:19.7]}
33... Kh8 {[%clk 0:01:07.5]} 34. Rf7 {[%clk 0:00:14.2]} 34... Qxc2+ {[%clk
0:00:54.7]} 35. Ka1 {[%clk 0:00:13.8]} 35... Qc1+ {[%clk 0:00:51.9]} 36. Rxc1
{[%clk 0:00:12.9]} 36... Rxc1# {[%clk 0:00:52.8]} 0-1

[Event "Late-Titled-Tuesday-Blitz-June-25-2024"]
[Site "Chess.com"]
[Date "2024.06.25"]
[Round "10"]
[White "FairChess_on_YouTube"]
[Black "alexrustemov"]
[Result "1-0"]
[WhiteElo "3078"]
[BlackElo "2826"]
[TimeControl "180+1"]
[EndTime "15:54:36 PDT"]
[Termination "FairChess_on_YouTube won by checkmate"]

1. c4 {[%clk 0:03:00.9]} 1... e6 {[%clk 0:02:53]} 2. Nf3 {[%clk 0:02:59.3]} 2...
d5 {[%clk 0:02:53.2]} 3. d4 {[%clk 0:02:59.3]} 3... Nf6 {[%clk 0:02:53.6]} 4. e3
{[%clk 0:02:59.7]} 4... a6 {[%clk 0:02:47.8]} 5. b3 {[%clk 0:02:59.7]} 5... c5
{[%clk 0:02:46.6]} 6. Bb2 {[%clk 0:02:58.8]} 6... Nc6 {[%clk 0:02:42.3]} 7. Nbd2
{[%clk 0:02:56.9]} 7... cxd4 {[%clk 0:02:39.5]} 8. exd4 {[%clk 0:02:56.8]} 8...
Be7 {[%clk 0:02:36.6]} 9. Rc1 {[%clk 0:02:52.1]} 9... O-O {[%clk 0:02:36.8]} 10.
Bd3 {[%clk 0:02:52.2]} 10... b6 {[%clk 0:02:32.4]} 11. O-O {[%clk 0:02:50.4]}
11... Bb7 {[%clk 0:02:31.8]} 12. Qe2 {[%clk 0:02:50.7]} 12... Re8 {[%clk
0:02:23.8]} 13. Rfd1 {[%clk 0:02:50.2]} 13... Bf8 {[%clk 0:02:22.4]} 14. Ne5
{[%clk 0:02:48.2]} 14... dxc4 {[%clk 0:02:10.9]} 15. Ndxc4 {[%clk 0:02:41.8]}
15... Nb4 {[%clk 0:02:08.5]} 16. Bb1 {[%clk 0:02:40.8]} 16... b5 {[%clk
0:02:05.9]} 17. Ne3 {[%clk 0:02:36.7]} 17... Nbd5 {[%clk 0:02:03.2]} 18. Nxd5
{[%clk 0:02:27]} 18... Qxd5 {[%clk 0:02:02.5]} 19. f3 {[%clk 0:02:20.6]} 19...
Rac8 {[%clk 0:02:02.9]} 20. Qf2 {[%clk 0:02:15.3]} 20... g6 {[%clk 0:01:59.9]}
21. Be4 {[%clk 0:02:09.4]} 21... Nxe4 {[%clk 0:01:41]} 22. fxe4 {[%clk
0:02:09.1]} 22... Qxe4 {[%clk 0:01:41.5]} 23. Rxc8 {[%clk 0:01:09]} 23... Rxc8
{[%clk 0:01:26.6]} 24. Qxf7+ {[%clk 0:01:08.9]} 24... Kh8 {[%clk 0:01:27.2]} 25.
d5 {[%clk 0:01:08.9]} 25... Bg7 {[%clk 0:00:19.6]} 26. Qxb7 {[%clk 0:01:08.7]}
26... Rf8 {[%clk 0:00:09.5]} 27. Qe7 {[%clk 0:00:49.3]} 27... Qc2 {[%clk
0:00:05.2]} 28. Nxg6+ {[%clk 0:00:42.7]} 28... Qxg6 {[%clk 0:00:05]} 29. Qxf8#
{[%clk 0:00:42.9]} 1-0

[Event "Late-Titled-Tuesday-Blitz-June-25-2024"]
[Site "Chess.com"]
[Date "2024.06.25"]
[Round "10"]
[White "jcmesafischer"]
[Black "Gzucaritas"]
[Result "1-0"]
[WhiteElo "2356"]
[BlackElo "2049"]
[TimeControl "180+1"]
[EndTime "15:54:40 PDT"]
[Termination "jcmesafischer won by checkmate"]

1. e4 {[%clk 0:02:54.8]} 1... e6 {[%clk 0:02:59.8]} 2. Qe2 {[%clk 0:02:54.7]}
2... d5 {[%clk 0:02:52.9]} 3. exd5 {[%clk 0:02:50.7]} 3... Qxd5 {[%clk
0:02:52.4]} 4. Nc3 {[%clk 0:02:50.9]} 4... Qd8 {[%clk 0:02:52.6]} 5. Nf3 {[%clk
0:02:49.6]} 5... Nf6 {[%clk 0:02:52.5]} 6. g3 {[%clk 0:02:49]} 6... Be7 {[%clk
0:02:52.8]} 7. Bg2 {[%clk 0:02:48.6]} 7... c6 {[%clk 0:02:52.9]} 8. O-O {[%clk
0:02:46.7]} 8... O-O {[%clk 0:02:52.9]} 9. d4 {[%clk 0:02:45]} 9... Nd5 {[%clk
0:02:51.7]} 10. Ne4 {[%clk 0:02:40.9]} 10... Nd7 {[%clk 0:02:46.8]} 11. c4
{[%clk 0:02:29.7]} 11... N5f6 {[%clk 0:02:45.8]} 12. Nc3 {[%clk 0:02:28.5]}
12... Nb6 {[%clk 0:02:31.7]} 13. b3 {[%clk 0:02:14.5]} 13... h6 {[%clk
0:02:23.5]} 14. Bb2 {[%clk 0:02:14.1]} 14... Bd7 {[%clk 0:02:17]} 15. Rad1
{[%clk 0:02:13.3]} 15... Qc7 {[%clk 0:02:16.6]} 16. Ne5 {[%clk 0:02:11]} 16...
Rad8 {[%clk 0:02:13.2]} 17. a3 {[%clk 0:02:09.8]} 17... c5 {[%clk 0:01:55.5]}
18. dxc5 {[%clk 0:02:01.7]} 18... Bxc5 {[%clk 0:01:52.5]} 19. b4 {[%clk
0:02:01.8]} 19... Be7 {[%clk 0:01:48.2]} 20. c5 {[%clk 0:01:55.9]} 20... Na4
{[%clk 0:01:30.3]} 21. Nxd7 {[%clk 0:01:51.6]} 21... Nxc3 {[%clk 0:01:29.9]} 22.
Bxc3 {[%clk 0:01:50]} 22... Rxd7 {[%clk 0:01:29.2]} 23. Rxd7 {[%clk 0:01:38.3]}
23... Qxd7 {[%clk 0:01:28.6]} 24. Rd1 {[%clk 0:01:29.9]} 24... Qa4 {[%clk
0:01:22.5]} 25. Bxb7 {[%clk 0:01:24]} 25... Qxa3 {[%clk 0:01:15.9]} 26. Qb2
{[%clk 0:01:24.6]} 26... Qxb2 {[%clk 0:01:06.1]} 27. Bxb2 {[%clk 0:01:25.5]}
27... Rd8 {[%clk 0:01:05.7]} 28. Ra1 {[%clk 0:01:25.4]} 28... Rd2 {[%clk
0:00:50.2]} 29. Bc3 {[%clk 0:01:25]} 29... Rc2 {[%clk 0:00:49.7]} 30. Be1 {[%clk
0:01:21.1]} 30... Nh7 {[%clk 0:00:29.9]} 31. Rxa7 {[%clk 0:01:16.3]} 31... Rc1
{[%clk 0:00:24.9]} 32. Kf1 {[%clk 0:01:16]} 32... Ng5 {[%clk 0:00:18.7]} 33. Ke2
{[%clk 0:01:12]} 33... Bf6 {[%clk 0:00:13.4]} 34. h4 {[%clk 0:01:07.2]} 34...
Nh3 {[%clk 0:00:10.4]} 35. Be4 {[%clk 0:01:05]} 35... Ng1+ {[%clk 0:00:09.2]}
36. Kd2 {[%clk 0:01:04.5]} 36... Rb1 {[%clk 0:00:06.2]} 37. Ra8+ {[%clk
0:01:03.2]} 37... Bd8 {[%clk 0:00:03.4]} 38. Rxd8# {[%clk 0:01:04.1]} 1-0

[Event "Late-Titled-Tuesday-Blitz-June-25-2024"]
[Site "Chess.com"]
[Date "2024.06.25"]
[Round "10"]
[White "VaglioSagan"]
[Black "KebabJangles"]
[Result "0-1"]
[WhiteElo "2508"]
[BlackElo "2270"]
[TimeControl "180+1"]
[EndTime "15:54:41 PDT"]
[Termination "KebabJangles won on time"]

1. d4 {[%clk 0:03:00.9]} 1... Nf6 {[%clk 0:02:59.7]} 2. Nf3 {[%clk 0:02:59.5]}
2... g6 {[%clk 0:02:59]} 3. e3 {[%clk 0:02:57.5]} 3... Bg7 {[%clk 0:02:58.5]} 4.
b3 {[%clk 0:02:58.1]} 4... O-O {[%clk 0:02:58.3]} 5. Bb2 {[%clk 0:02:59]} 5...
d6 {[%clk 0:02:58.9]} 6. Nbd2 {[%clk 0:02:59.6]} 6... Nfd7 {[%clk 0:02:59.1]} 7.
c4 {[%clk 0:02:59.6]} 7... e5 {[%clk 0:02:56.3]} 8. dxe5 {[%clk 0:02:47.5]} 8...
Nxe5 {[%clk 0:02:47.4]} 9. Nxe5 {[%clk 0:02:46.7]} 9... dxe5 {[%clk 0:02:48.3]}
10. Be2 {[%clk 0:02:46.2]} 10... f5 {[%clk 0:02:47.1]} 11. O-O {[%clk
0:02:45.9]} 11... Be6 {[%clk 0:02:45.5]} 12. Nf3 {[%clk 0:02:40.3]} 12... Nc6
{[%clk 0:02:45.1]} 13. Qc1 {[%clk 0:02:12.6]} 13... Qe7 {[%clk 0:02:37.9]} 14.
c5 {[%clk 0:01:45.9]} 14... e4 {[%clk 0:02:36.5]} 15. Bxg7 {[%clk 0:01:38.1]}
15... Kxg7 {[%clk 0:02:34.3]} 16. Nd2 {[%clk 0:01:34.4]} 16... Ne5 {[%clk
0:02:31.8]} 17. Qc3 {[%clk 0:01:21.7]} 17... Qf6 {[%clk 0:02:30.5]} 18. Rac1
{[%clk 0:01:22.4]} 18... c6 {[%clk 0:02:29.2]} 19. Nc4 {[%clk 0:01:13.4]} 19...
Nxc4 {[%clk 0:02:26]} 20. Bxc4 {[%clk 0:01:13.6]} 20... Qxc3 {[%clk 0:02:25.2]}
21. Rxc3 {[%clk 0:01:14.5]} 21... Bxc4 {[%clk 0:02:24.8]} 22. Rxc4 {[%clk
0:01:15.4]} 22... Rfd8 {[%clk 0:02:24.5]} 23. Rb4 {[%clk 0:01:14.9]} 23... Rd7
{[%clk 0:02:23.3]} 24. a4 {[%clk 0:01:05.4]} 24... Rad8 {[%clk 0:02:21.2]} 25.
a5 {[%clk 0:01:05]} 25... a6 {[%clk 0:02:21.6]} 26. g3 {[%clk 0:01:03.8]} 26...
Kf7 {[%clk 0:02:21.2]} 27. Kg2 {[%clk 0:01:02.5]} 27... Ke6 {[%clk 0:02:20.2]}
28. Rc1 {[%clk 0:01:02.5]} 28... Ke5 {[%clk 0:02:19.6]} 29. Rcc4 {[%clk
0:01:01]} 29... Kd5 {[%clk 0:02:17.7]} 30. Rb6 {[%clk 0:01:00.6]} 30... h6
{[%clk 0:02:01.9]} 31. h4 {[%clk 0:00:58.4]} 31... g5 {[%clk 0:02:01.2]} 32.
hxg5 {[%clk 0:00:59.3]} 32... hxg5 {[%clk 0:02:02]} 33. Rcb4 {[%clk 0:00:43.5]}
33... Kxc5 {[%clk 0:02:00.6]} 34. Rxb7 {[%clk 0:00:43.9]} 34... Rxb7 {[%clk
0:01:54.5]} 35. Rxb7 {[%clk 0:00:44.8]} 35... Rd3 {[%clk 0:01:48.8]} 36. Rf7
{[%clk 0:00:39]} 36... Rd5 {[%clk 0:01:48.5]} 37. Rb7 {[%clk 0:00:39]} 37... Kd6
{[%clk 0:01:47.7]} 38. b4 {[%clk 0:00:32.1]} 38... Rb5 {[%clk 0:01:47.4]} 39.
Ra7 {[%clk 0:00:16.4]} 39... Rxb4 {[%clk 0:01:44.5]} 40. Rxa6 {[%clk 0:00:17.1]}
40... Ra4 {[%clk 0:01:44.5]} 41. g4 {[%clk 0:00:17.4]} 41... fxg4 {[%clk
0:01:36.3]} 42. Kg3 {[%clk 0:00:16.9]} 42... Ra2 {[%clk 0:01:36.8]} 43. Ra8
{[%clk 0:00:15.4]} 43... Kc5 {[%clk 0:01:37]} 44. a6 {[%clk 0:00:13.9]} 44...
Kb6 {[%clk 0:01:37.2]} 45. Kxg4 {[%clk 0:00:13.9]} 45... Rxf2 {[%clk 0:01:36.4]}
46. a7 {[%clk 0:00:13.4]} 46... Ra2 {[%clk 0:01:36.3]} 47. Kxg5 {[%clk
0:00:13.9]} 47... Rxa7 {[%clk 0:01:35.7]} 48. Rxa7 {[%clk 0:00:14.3]} 48... Kxa7
{[%clk 0:01:35.9]} 49. Kf5 {[%clk 0:00:15.2]} 49... Kb6 {[%clk 0:01:36.4]} 50.
Kxe4 {[%clk 0:00:15.8]} 50... Kc5 {[%clk 0:01:35.7]} 51. Ke5 {[%clk 0:00:16.2]}
51... Kb4 {[%clk 0:01:35.2]} 52. Kd4 {[%clk 0:00:13.2]} 52... c5+ {[%clk
0:01:35.6]} 53. Kd5 {[%clk 0:00:12.3]} 53... c4 {[%clk 0:01:35.8]} 54. e4 {[%clk
0:00:13.1]} 54... c3 {[%clk 0:01:36.3]} 55. e5 {[%clk 0:00:14]} 55... c2 {[%clk
0:01:36.9]} 56. e6 {[%clk 0:00:14.9]} 56... c1=Q {[%clk 0:01:37.3]} 57. e7
{[%clk 0:00:15.3]} 57... Qc8 {[%clk 0:01:37.5]} 0-1